lending/lending_fUSD_20250719
["ID","MTS","AMOUNT","RATE_DAILY","PERIOD"]
[373304252,1752936655841,-480.0,0.00019178,2]
[373304253,1752936655851,-471.33044807,0.00019178,2]
[373304254,1752936655860,-480.0,0.00019178,2]
[373304255,1752936655870,-542.49468435,0.00019178,2]
[373304256,1752936655879,-480.0,0.00019178,2]
[373304257,1752936655888,-462.27456166,0.00019178,2]
[373304258,1752936655899,-480.0,0.00019178,2]
[373304259,1752936655908,-480.0,0.00019178,2]
[373304260,1752936655918,-1482.48,0.00019178,2]
[373304261,1752936655927,-480.0,0.00019178,2]
[373304262,1752936655936,-1104.17,0.00019178,2]
[373304263,1752936655945,-480.0,0.00019178,2]
[373304264,1752936655954,-151.0,0.00019178,2]
[373304265,1752936655963,-480.0,0.00019178,2]
[373304266,1752936655972,-151.0,0.00019178,2]
[373304267,1752936655982,-480.0,0.00019178,2]
[373304268,1752936655991,-480.0,0.00019178,2]
[373304269,1752936656000,-202.91163689,0.00019178,2]
[373304270,1752936658894,506.0,0.00015638,2]
[373304271,1752936663324,500.0,0.0003,120]
[373304272,1752936715448,500.0,0.0003,120]
[373304273,1752936746652,500.0,0.0003,120]
[373304274,1752936780462,500.0,0.0003,120]
[373304275,1752936804302,150.0,0.00030137,120]
[373304276,1752936815464,500.0,0.0003,120]
[373304277,1752936838447,500.0,0.0003,120]
[373304278,1752936861761,500.0,0.0003,120]
[373304279,1752936967481,30823.96235347,0.0003,120]
[373304281,1752937028882,5000.0,0.00029589,120]
[373304282,1752937150380,500.0,0.00016004,2]
[373304283,1752937159309,500.0,0.00016004,2]
[373304284,1752937168873,500.0,0.00016004,2]
[373304285,1752937177637,500.0,0.00016004,2]
[373304286,1752937185351,500.0,0.00016004,2]
[373304287,1752937195457,292.87,0.00013699,2]
[373304288,1752937197465,500.0,0.00016004,2]
[373304290,1752937219230,689.9,0.00016004,2]
[373304291,1752937222891,250.0,0.00015,2]
[373304293,1752937382089,454.312,0.00030136,120]
[373304294,1752937477356,3000.0088529,0.0003,120]
[373304295,1752937477425,500.0,0.00030136,120]
[373304313,1752937832089,-354.04839661,0.00016335,2]
[373304314,1752937832144,-156.95160339,0.00016335,2]
[373304315,1752937832154,-171.0,0.000175,2]
[373304316,1752937832163,-511.0,0.00017619,3]
[373304317,1752937832172,-223.33,0.00017779,2]
[373304318,1752937832182,-309.39341263,0.00017792,2]
[373304319,1752937832213,-519.64510156,0.00017792,2]
[373304320,1752937832223,-300.0,0.0001781,2]
[373304321,1752937832232,-1200.0,0.0001781,2]
[373304322,1752937832242,-600.0,0.00017811,2]
[373304323,1752937832251,-600.0,0.00017811,2]
[373304324,1752937832260,-600.0,0.00017811,2]
[373304325,1752937832270,-600.0,0.00017811,2]
[373304326,1752937832279,-182.57,0.00017811,2]
[373304327,1752937832289,-321.13,0.00017814,2]
[373304328,1752937832298,-23900.0,0.00017853,2]
[373304329,1752937832308,-165.03,0.0001786,2]
[373304330,1752937832317,-583.7,0.00017898,2]
[373304331,1752937832327,-1000.0,0.00017945,2]
[373304332,1752937832336,-190.0,0.00017949,7]
[373304333,1752937832346,-850.0,0.0001811,2]
[373304334,1752937832355,-7142.856,0.00018111,2]
[373304335,1752937832365,-207.4,0.00018111,2]
[373304336,1752937832374,-628.19,0.00018145,2]
[373304337,1752937832384,-150.0,0.00018167,2]
[373304339,1752937832394,-250.0,0.00018247,2]
[373304341,1752937832406,-150.0,0.00018268,2]
[373304342,1752937832415,-150.0,0.00018304,2]
[373304344,1752937832425,-150.0,0.00018313,2]
[373304346,1752937832435,-207.54,0.00018329,2]
[373304348,1752937832444,-250.0,0.00018357,2]
[373304350,1752937832454,-150.0,0.00018476,2]
[373304351,1752937832464,-150.0,0.00018571,2]
[373304352,1752937832473,-151.0,0.00018599,2]
[373304353,1752937832483,-346.92554585,0.00018599,2]
[373304354,1752937832493,-151.0,0.00018599,2]
[373304355,1752937832502,-151.52015932,0.00018599,2]
[373304356,1752937832512,-600.0,0.00018599,2]
[373304357,1752937832522,-160.0,0.00018599,2]
[373304358,1752937832531,-151.0,0.00018599,2]
[373304359,1752937832541,-151.0,0.00018599,2]
[373304370,1752937832825,-151.0,0.00018599,2]
[373304371,1752937832836,-151.0,0.00018599,2]
[373304372,1752937832846,-151.0,0.00018599,2]
[373304373,1752937832857,-151.0,0.00018599,2]
[373304374,1752937832867,-151.0,0.00018599,2]
[373304375,1752937832878,-1000.0,0.0001863,2]
[373304376,1752937832888,-1466.19273379,0.00018659,2]
[373304377,1752937832902,-5940.94893821,0.00018659,2]
[373304378,1752937832912,-321.13,0.00018704,2]
[373304379,1752937832921,-168.0,0.0001878,2]
[373304380,1752937832931,-726.7141923,0.00018781,2]
[373304381,1752937832941,-150.0,0.00018825,2]
[373304382,1752937832951,-167.82,0.00018847,2]
[373304383,1752937832961,-511.0,0.00018904,5]
[373304384,1752937832971,-150.0,0.0001891,2]
[373304385,1752937832981,-726.7141923,0.00018931,2]
[373304386,1752937832990,-150.0,0.00018933,2]
[373304387,1752937833000,-1580.082509,0.00018936,2]
[373304388,1752937833010,-6901.8463,0.00018978,2]
[373304389,1752937833019,-14510.25833645,0.0001899,2]
[373304390,1752937833029,-12818.0831,0.00019,2]
[373304391,1752937833039,-1000.0,0.00019,2]
[373304392,1752937833048,-8125.403123,0.00019,2]
[373304393,1752937833058,-207.54,0.00019016,2]
[373304394,1752937833067,-4117.234,0.00019037,2]
[373304395,1752937833077,-150.0,0.00019058,2]
[373304396,1752937833087,-164.28811521,0.00019067,2]
[373304397,1752937833096,-10392.55105019,0.00019067,2]
[373304398,1752937833106,-693.2599981,0.00019067,2]
[373304399,1752937833115,-913.9126,0.00019067,2]
[373304400,1752937833125,-1000.0,0.00019076,2]
[373304401,1752937833135,-2500.0,0.00019076,2]
[373304402,1752937833144,-852.14921364,0.00019077,2]
[373304403,1752937833155,-3183.89851276,0.00019077,2]
[373304404,1752937833164,-177.44769933,0.00019077,2]
[373304405,1752937833174,-217.1416,0.00019078,2]
[373304406,1752937833183,-10000.0,0.00019078,2]
[373304407,1752937833193,-164.28811515,0.00019091,2]
[373304408,1752937833202,-4081.81397586,0.000191,2]
[373304409,1752937833212,-1000.0,0.000191,3]
[373304410,1752937833221,-1000.0,0.000191,3]
[373304411,1752937833232,-1000.0,0.000191,3]
[373304412,1752937833241,-833.0,0.000191,4]
[373304413,1752937833251,-1005.0,0.000191,2]
[373304414,1752937833261,-150.0,0.00019113,2]
[373304415,1752937833270,-164.28811515,0.00019114,2]
[373304416,1752937833280,-150.0,0.00019126,2]
[373304417,1752937833289,-164.28811515,0.00019138,2]
[373304418,1752937833299,-10392.5510501,0.00019141,2]
[373304419,1752937833309,-600.0,0.00019147,2]
[373304420,1752937833319,-151.0,0.00019147,2]
[373304421,1752937833328,-5659.572,0.0001915,2]
[373304422,1752937833338,-247.131,0.0001915,2]
[373304423,1752937833348,-3183.89851273,0.0001915,2]
[373304424,1752937833357,-164.28811515,0.00019161,2]
[373304425,1752937833366,-1030.5716969,0.00019166,5]
[373304426,1752937833376,-1966.58,0.00019167,2]
[373304427,1752937833386,-72585.7761703,0.00019167,2]
[373304428,1752937833395,-3606.7026589,0.00019167,2]
[373304429,1752937833406,-462.15943842,0.00019167,2]
[373304430,1752937833416,-1966.58,0.00019167,2]
[373304431,1752937833426,-500.0,0.00019173,2]
[373304432,1752937833435,-170.77658113,0.00019177,2]
[373304433,1752937833445,-640.58820515,0.00019177,2]
[373304434,1752937833455,-193.2115535,0.00019177,2]
[373304435,1752937833464,-657.0,0.00019177,2]
[373304436,1752937833475,-1042.40542873,0.00019177,5]
[373304437,1752937833485,-1042.40542872,0.00019177,5]
[373304438,1752937833495,-1030.57169691,0.00019177,5]
[373304439,1752937833506,-35452.41353141,0.00019177,2]
[373304440,1752937833518,-155.0,0.00019177,2]
[373304441,1752937833528,-3088.11,0.00019177,2]
[373304442,1752937833537,-802.12555808,0.00019177,2]
[373304443,1752937833547,-87562.5152883,0.00019178,2]
[373304444,1752937833560,-67915.80650592,0.00019178,2]
[373304446,1752937837894,-19451.23814797,0.00019178,2]
[373304447,1752937838121,-117815.07358399,0.00019178,2]
[373304448,1752937838632,-1682.67557119,0.00019178,2]
[373304449,1752937838644,-285.54941366,0.00019178,2]
[373304450,1752937838657,-971.2856532,0.00019178,2]
[373304451,1752937838669,-1012.77258717,0.00019178,2]
[373304452,1752937838680,-439.3771268,0.00019178,2]
[373304615,1752937840487,-378.21447661,0.00018335,2]
[373304617,1752937840496,-9.90554339,0.00019178,2]
[373304620,1752937840507,-1210.5587424,0.00019178,2]
[373304623,1752937840518,-506.5940286,0.00019178,2]
[373304860,1752937842908,-261.89377851,0.00019177,2]
[373304862,1752937842918,-13848.78982698,0.00019178,2]
[373304890,1752937843190,-8766.84520001,0.00019178,2]
[373304911,1752937843381,-408.38,0.00019178,2]
[373305159,1752937846071,-210946.8439341,0.00019178,2]
[373305173,1752937846208,-822.2369925,0.00019178,2]
[373305186,1752937846335,-884.45857501,0.00019178,2]
[373305190,1752937846371,-464986.76515439,0.00019178,2]
[373305191,1752937846381,-22918.0952765,0.00019178,2]
[373305192,1752937846391,-151.0,0.00019178,2]
[373305193,1752937846400,-151.0,0.00019178,2]
[373305194,1752937846410,-151.0,0.00019178,2]
[373305195,1752937846421,-151.0,0.00019178,2]
[373305196,1752937846431,-151.0,0.00019178,2]
[373305197,1752937846440,-152.944486,0.00019178,2]
[373305198,1752937846450,-151.0,0.00019178,2]
[373305199,1752937846460,-151.0,0.00019178,2]
[373305200,1752937846469,-151.0,0.00019178,2]
[373305201,1752937846478,-151.0,0.00019178,2]
[373305202,1752937846488,-151.0,0.00019178,2]
[373305203,1752937846498,-151.0,0.00019178,2]
[373305204,1752937846507,-151.0,0.00019178,2]
[373305205,1752937846516,-151.0,0.00019178,2]
[373305206,1752937846525,-151.0,0.00019178,2]
[373305208,1752937846534,-151.0,0.00019178,2]
[373305209,1752937846544,-151.0,0.00019178,2]
[373305212,1752937846554,-460.0,0.00019178,2]
[373305214,1752937846564,-504.94115898,0.00019178,2]
[373305216,1752937846573,-480.0,0.00019178,2]
[373305218,1752937846583,-257.50806113,0.00019178,2]
[373305220,1752937846593,-582.2025454,0.00019178,2]
[373305222,1752937846603,-480.0,0.00019178,2]
[373305223,1752937846615,-151.0,0.00019178,2]
[373305225,1752937846625,-151.0,0.00019178,2]
[373305228,1752937846634,-151.0,0.00019178,2]
[373305230,1752937846644,-480.0,0.00019178,2]
[373305232,1752937846654,-151.0,0.00019178,2]
[373305233,1752937846664,-151.0,0.00019178,2]
[373305236,1752937846674,-208.178346,0.00019178,2]
[373305238,1752937846683,-151.0,0.00019178,2]
[373305239,1752937846695,-151.0,0.00019178,2]
[373305241,1752937846704,-151.0,0.00019178,2]
[373305243,1752937846714,-440.0,0.00019178,2]
[373305245,1752937846724,-480.0,0.00019178,2]
[373305247,1752937846734,-480.0,0.00019178,2]
[373305250,1752937846743,-437.90651566,0.00019178,2]
[373305252,1752937846752,-480.0,0.00019178,2]
[373305254,1752937846762,-480.0,0.00019178,2]
[373305256,1752937846771,-480.0,0.00019178,2]
[373305258,1752937846781,-511.78665291,0.00019178,2]
[373305260,1752937846790,-480.0,0.00019178,2]
[373305262,1752937846800,-480.0,0.00019178,2]
[373305264,1752937846810,-480.0,0.00019178,2]
[373305266,1752937846820,-480.0,0.00019178,2]
[373305268,1752937846831,-440.0,0.00019178,2]
[373305270,1752937846840,-480.0,0.00019178,2]
[373305272,1752937846849,-151.0,0.00019178,2]
[373305274,1752937846859,-151.0,0.00019178,2]
[373305276,1752937846868,-151.0,0.00019178,2]
[373305278,1752937846877,-480.0,0.00019178,2]
[373305280,1752937846887,-151.0,0.00019178,2]
[373305282,1752937846896,-471.25977997,0.00019178,2]
[373305284,1752937846905,-480.0,0.00019178,2]
[373305286,1752937846916,-480.0,0.00019178,2]
[373305288,1752937846925,-480.0,0.00019178,2]
[373305290,1752937846935,-526.11911461,0.00019178,2]
[373305292,1752937846945,-480.0,0.00019178,2]
[373305294,1752937846954,-480.0,0.00019178,2]
[373305296,1752937846963,-482.99236582,0.00019178,2]
[373305298,1752937846973,-504.34693628,0.00019178,2]
[373305300,1752937846982,-480.0,0.00019178,2]
[373305302,1752937846992,-480.0,0.00019178,2]
[373305304,1752937847002,-480.0,0.00019178,2]
[373305306,1752937847011,-480.0,0.00019178,2]
[373305308,1752937847021,-480.0,0.00019178,2]
[373305310,1752937847031,-480.0,0.00019178,2]
[373305312,1752937847041,-480.0,0.00019178,2]
[373305314,1752937847051,-226.00374193,0.00019178,2]
[373305316,1752937847061,-480.0,0.00019178,2]
[373305318,1752937847071,-460.0,0.00019178,2]
[373305320,1752937847081,-480.0,0.00019178,2]
[373305322,1752937847091,-480.0,0.00019178,2]
[373305323,1752937847100,-480.0,0.00019178,2]
[373305325,1752937847110,-480.0,0.00019178,2]
[373305327,1752937847119,-440.0,0.00019178,2]
[373305329,1752937847129,-480.0,0.00019178,2]
[373305331,1752937847137,-480.0,0.00019178,2]
[373305332,1752937847147,-442.61377756,0.00019178,2]
[373305333,1752937847157,-480.0,0.00019178,2]
[373305334,1752937847167,-520.38332759,0.00019178,2]
[373305335,1752937847177,-480.0,0.00019178,2]
[373305336,1752937847186,-151.0,0.00019178,2]
[373305337,1752937847196,-480.0,0.00019178,2]
[373305338,1752937847206,-480.0,0.00019178,2]
[373305339,1752937847215,-480.0,0.00019178,2]
[373305340,1752937847225,-474.05213391,0.00019178,2]
[373305341,1752937847235,-480.0,0.00019178,2]
[373305344,1752937847245,-193.68026279,0.00019178,2]
[373305345,1752937847255,-158.88423035,0.00019178,2]
[373305347,1752937847264,-440.0,0.00019178,2]
[373305349,1752937847273,-380.0,0.00019178,2]
[373305351,1752937847284,-480.0,0.00019178,2]
[373305353,1752937847293,-480.0,0.00019178,2]
[373305355,1752937847303,-440.0,0.00019178,2]
[373305357,1752937847313,-480.0,0.00019178,2]
[373305359,1752937847323,-480.0,0.00019178,2]
[373305361,1752937847333,-443.21075383,0.00019178,2]
[373305363,1752937847342,-440.0,0.00019178,2]
[373305365,1752937847351,-419.61540082,0.00019178,2]
[373305367,1752937847361,-480.0,0.00019178,2]
[373305369,1752937847371,-497.06611577,0.00019178,2]
[373305371,1752937847381,-480.0,0.00019178,2]
[373305373,1752937847390,-480.0,0.00019178,2]
[373305375,1752937847400,-493.21555812,0.00019178,2]
[373305377,1752937847410,-480.0,0.00019178,2]
[373305379,1752937847421,-480.0,0.00019178,2]
[373305381,1752937847430,-480.0,0.00019178,2]
[373305383,1752937847440,-444.99158983,0.00019178,2]
[373305385,1752937847449,-480.0,0.00019178,2]
[373305387,1752937847459,-480.0,0.00019178,2]
[373305389,1752937847468,-480.0,0.00019178,2]
[373305391,1752937847479,-480.0,0.00019178,2]
[373305393,1752937847489,-480.0,0.00019178,2]
[373305395,1752937847498,-480.0,0.00019178,2]
[373305397,1752937847508,-480.0,0.00019178,2]
[373305399,1752937847518,-480.0,0.00019178,2]
[373305400,1752937847528,-440.0,0.00019178,2]
[373305401,1752937847537,-480.0,0.00019178,2]
[373305402,1752937847547,-480.0,0.00019178,2]
[373305403,1752937847557,-151.0,0.00019178,2]
[373305404,1752937847567,-500.0,0.00019178,2]
[373305406,1752937847577,-480.0,0.00019178,2]
[373305408,1752937847587,-481.10678792,0.00019178,2]
[373305410,1752937847597,-480.0,0.00019178,2]
[373305412,1752937847606,-480.0,0.00019178,2]
[373305414,1752937847620,-480.0,0.00019178,2]
[373305416,1752937847629,-480.0,0.00019178,2]
[373305418,1752937847638,-480.0,0.00019178,2]
[373305420,1752937847648,-480.0,0.00019178,2]
[373305421,1752937847658,-384.25525128,0.00019178,2]
[373305423,1752937847669,-579.891817,0.00019178,2]
[373305424,1752937847679,-151.0,0.00019178,2]
[373305427,1752937847689,-480.0,0.00019178,2]
[373305429,1752937847700,-151.429712,0.00019178,2]
[373305430,1752937847710,-480.0,0.00019178,2]
[373305432,1752937847721,-480.0,0.00019178,2]
[373305434,1752937847731,-480.0,0.00019178,2]
[373305436,1752937847741,-480.0,0.00019178,2]
[373305438,1752937847756,-480.0,0.00019178,2]
[373305440,1752937847778,-482.00022075,0.00019178,2]
[373305442,1752937847788,-480.0,0.00019178,2]
[373305444,1752937847798,-440.0,0.00019178,2]
[373305446,1752937847808,-440.0,0.00019178,2]
[373305448,1752937847819,-349.77533088,0.00019178,2]
[373305450,1752937847829,-480.0,0.00019178,2]
[373305452,1752937847838,-480.0,0.00019178,2]
[373305454,1752937847847,-480.0,0.00019178,2]
[373305456,1752937847857,-480.0,0.00019178,2]
[373305458,1752937847867,-364.304375,0.00019178,2]
[373305460,1752937847876,-480.0,0.00019178,2]
[373305462,1752937847886,-480.0,0.00019178,2]
[373305464,1752937847896,-509.70100937,0.00019178,2]
[373305466,1752937847905,-440.0,0.00019178,2]
[373305468,1752937847915,-480.0,0.00019178,2]
[373305470,1752937847925,-480.0,0.00019178,2]
[373305472,1752937847934,-480.0,0.00019178,2]
[373305474,1752937847943,-480.0,0.00019178,2]
[373305476,1752937847953,-480.0,0.00019178,2]
[373305478,1752937847963,-480.0,0.00019178,2]
[373305480,1752937847972,-480.0,0.00019178,2]
[373305481,1752937847982,-365.15070223,0.00019178,2]
[373305483,1752937847991,-480.0,0.00019178,2]
[373305485,1752937848001,-480.0,0.00019178,2]
[373305487,1752937848010,-480.0,0.00019178,2]
[373305489,1752937848020,-480.0,0.00019178,2]
[373305491,1752937848029,-151.0,0.00019178,2]
[373305493,1752937848039,-480.0,0.00019178,2]
[373305495,1752937848048,-440.0,0.00019178,2]
[373305497,1752937848057,-151.0,0.00019178,2]
[373305499,1752937848067,-480.0,0.00019178,2]
[373305501,1752937848076,-480.0,0.00019178,2]
[373305503,1752937848086,-480.0,0.00019178,2]
[373305505,1752937848095,-440.0,0.00019178,2]
[373305507,1752937848105,-480.0,0.00019178,2]
[373305509,1752937848115,-480.0,0.00019178,2]
[373305511,1752937848124,-480.0,0.00019178,2]
[373305513,1752937848134,-480.0,0.00019178,2]
[373305515,1752937848144,-480.0,0.00019178,2]
[373305517,1752937848154,-460.0,0.00019178,2]
[373305519,1752937848164,-340.69086208,0.00019178,2]
[373305521,1752937848173,-480.0,0.00019178,2]
[373305523,1752937848184,-480.0,0.00019178,2]
[373305525,1752937848194,-490.0,0.00019178,2]
[373305527,1752937848203,-440.0,0.00019178,2]
[373305529,1752937848214,-480.0,0.00019178,2]
[373305531,1752937848223,-480.0,0.00019178,2]
[373305533,1752937848233,-480.0,0.00019178,2]
[373305535,1752937848243,-181.74817461,0.00019178,2]
[373305537,1752937848254,-460.0,0.00019178,2]
[373305539,1752937848263,-480.0,0.00019178,2]
[373305541,1752937848273,-151.0,0.00019178,2]
[373305543,1752937848283,-151.0,0.00019178,2]
[373305545,1752937848292,-151.0,0.00019178,2]
[373305547,1752937848301,-480.0,0.00019178,2]
[373305549,1752937848311,-480.0,0.00019178,2]
[373305551,1752937848321,-480.0,0.00019178,2]
[373305553,1752937848331,-480.0,0.00019178,2]
[373305554,1752937848341,-480.0,0.00019178,2]
[373305556,1752937848351,-480.00156294,0.00019178,2]
[373305559,1752937848361,-443.0788461,0.00019178,2]
[373305561,1752937848371,-480.0,0.00019178,2]
[373305563,1752937848381,-480.0,0.00019178,2]
[373305565,1752937848391,-480.0,0.00019178,2]
[373305567,1752937848401,-480.0,0.00019178,2]
[373305569,1752937848411,-480.0,0.00019178,2]
[373305571,1752937848425,-480.0,0.00019178,2]
[373305573,1752937848434,-480.0,0.00019178,2]
[373305575,1752937848445,-480.0,0.00019178,2]
[373305577,1752937848455,-480.0,0.00019178,2]
[373305579,1752937848465,-440.0,0.00019178,2]
[373305581,1752937848475,-480.0,0.00019178,2]
[373305583,1752937848485,-296.9602498,0.00019178,2]
[373305585,1752937848495,-480.0,0.00019178,2]
[373305587,1752937848505,-480.0,0.00019178,2]
[373305589,1752937848515,-480.0,0.00019178,2]
[373305591,1752937848525,-484.79279299,0.00019178,2]
[373305593,1752937848535,-480.0,0.00019178,2]
[373305595,1752937848545,-480.0,0.00019178,2]
[373305597,1752937848555,-480.0,0.00019178,2]
[373305599,1752937848565,-480.0,0.00019178,2]
[373305601,1752937848575,-480.0,0.00019178,2]
[373305603,1752937848584,-294.55072223,0.00019178,2]
[373305605,1752937848596,-480.0,0.00019178,2]
[373305606,1752937848605,-480.0,0.00019178,2]
[373305608,1752937848618,-480.0,0.00019178,2]
[373305610,1752937848627,-480.0,0.00019178,2]
[373305611,1752937848637,-480.0,0.00019178,2]
[373305613,1752937848647,-440.0,0.00019178,2]
[373305615,1752937848658,-480.0,0.00019178,2]
[373305617,1752937848669,-480.0,0.00019178,2]
[373305619,1752937848679,-480.0,0.00019178,2]
[373305621,1752937848690,-480.0,0.00019178,2]
[373305623,1752937848699,-480.0,0.00019178,2]
[373305625,1752937848710,-480.0,0.00019178,2]
[373305627,1752937848720,-480.0,0.00019178,2]
[373305629,1752937848730,-480.0,0.00019178,2]
[373305632,1752937848740,-480.0,0.00019178,2]
[373305634,1752937848751,-480.0,0.00019178,2]
[373305636,1752937848761,-480.0,0.00019178,2]
[373305638,1752937848771,-480.0,0.00019178,2]
[373305639,1752937848781,-480.0,0.00019178,2]
[373305642,1752937848790,-480.0,0.00019178,2]
[373305643,1752937848799,-480.0,0.00019178,2]
[373305646,1752937848810,-629.81164238,0.00019178,2]
[373305647,1752937848819,-480.0,0.00019178,2]
[373305650,1752937848829,-480.0,0.00019178,2]
[373305651,1752937848839,-300.0,0.00019178,2]
[373305653,1752937848849,-480.0,0.00019178,2]
[373305656,1752937848859,-440.0,0.00019178,2]
[373305657,1752937848868,-480.0,0.00019178,2]
[373305659,1752937848878,-480.0,0.00019178,2]
[373305661,1752937848887,-440.0,0.00019178,2]
[373305663,1752937848896,-480.0,0.00019178,2]
[373305665,1752937848906,-480.0,0.00019178,2]
[373305667,1752937848915,-480.0,0.00019178,2]
[373305669,1752937848925,-440.0,0.00019178,2]
[373305671,1752937848935,-480.0,0.00019178,2]
[373305673,1752937848944,-440.0,0.00019178,2]
[373305675,1752937848954,-480.0,0.00019178,2]
[373305677,1752937848963,-480.0,0.00019178,2]
[373305679,1752937848973,-480.0,0.00019178,2]
[373305681,1752937848983,-480.0,0.00019178,2]
[373305683,1752937848992,-440.0,0.00019178,2]
[373305685,1752937849002,-480.0,0.00019178,2]
[373305687,1752937849012,-480.0,0.00019178,2]
[373305689,1752937849022,-480.0,0.00019178,2]
[373305691,1752937849032,-480.0,0.00019178,2]
[373305693,1752937849042,-480.0,0.00019178,2]
[373305695,1752937849051,-480.0,0.00019178,2]
[373305697,1752937849060,-480.0,0.00019178,2]
[373305699,1752937849070,-480.0,0.00019178,2]
[373305701,1752937849080,-480.0,0.00019178,2]
[373305703,1752937849089,-480.0,0.00019178,2]
[373305705,1752937849099,-440.0,0.00019178,2]
[373305707,1752937849108,-480.0,0.00019178,2]
[373305709,1752937849118,-432.913539,0.00019178,2]
[373305711,1752937849128,-432.913539,0.00019178,2]
[373305713,1752937849137,-432.913539,0.00019178,2]
[373305715,1752937849147,-440.0,0.00019178,2]
[373305717,1752937849156,-480.0,0.00019178,2]
[373305719,1752937849167,-480.0,0.00019178,2]
[373305721,1752937849177,-480.0,0.00019178,2]
[373305723,1752937849187,-442.69224132,0.00019178,2]
[373305725,1752937849197,-480.0,0.00019178,2]
[373305727,1752937849208,-480.0,0.00019178,2]
[373305729,1752937849218,-480.0,0.00019178,2]
[373305731,1752937849227,-480.0,0.00019178,2]
[373305733,1752937849238,-480.0,0.00019178,2]
[373305735,1752937849248,-480.0,0.00019178,2]
[373305737,1752937849257,-480.0,0.00019178,2]
[373305739,1752937849267,-480.0,0.00019178,2]
[373305741,1752937849278,-480.0,0.00019178,2]
[373305743,1752937849288,-480.0,0.00019178,2]
[373305745,1752937849297,-440.0,0.00019178,2]
[373305747,1752937849307,-480.0,0.00019178,2]
[373305749,1752937849317,-480.0,0.00019178,2]
[373305751,1752937849327,-480.0,0.00019178,2]
[373305752,1752937849336,-480.0,0.00019178,2]
[373305754,1752937849347,-480.0,0.00019178,2]
[373305756,1752937849356,-480.0,0.00019178,2]
[373305758,1752937849365,-480.0,0.00019178,2]
[373305760,1752937849375,-440.0,0.00019178,2]
[373305762,1752937849384,-480.0,0.00019178,2]
[373305764,1752937849394,-480.0,0.00019178,2]
[373305766,1752937849404,-499.98930529,0.00019178,2]
[373305768,1752937849413,-151.0,0.00019178,2]
[373305770,1752937849424,-151.0,0.00019178,2]
[373305772,1752937849433,-480.0,0.00019178,2]
[373305774,1752937849443,-480.0,0.00019178,2]
[373305776,1752937849453,-151.0,0.00019178,2]
[373305778,1752937849462,-480.0,0.00019178,2]
[373305780,1752937849472,-480.0,0.00019178,2]
[373305793,1752937849715,-202.48632094,0.00019178,2]
[373305795,1752937849725,-480.0,0.00019178,2]
[373305797,1752937849735,-480.0,0.00019178,2]
[373305799,1752937849745,-186.47541452,0.00019178,2]
[373305801,1752937849756,-480.0,0.00019178,2]
[373305803,1752937849766,-440.0,0.00019178,2]
[373305805,1752937849776,-151.0,0.00019178,2]
[373305807,1752937849786,-151.0,0.00019178,2]
[373305809,1752937849796,-480.0,0.00019178,2]
[373305811,1752937849806,-556.47551896,0.00019178,2]